{"text_format":"1","workbook":"xlsx","n_sheets":1,"sheets":["Лист1"],"not_rendered":{"charts":0,"images":0,"macros":1,"external_links":0,"defined_names":0,"comments":0,"pivot_tables":0},"unopened":[],"bounds":{"document_bytes":16777216,"sheet_cells":100000,"rows_first":2000,"rows_last":500,"rows_between":2000,"halvings":0,"cell_chars":16384,"cell_head_chars":4096},"cells_cut":0,"cells_raw":0,"read":"whole","date_system":"1900"}

{"sheet":"Лист1","index":0,"n_rows":11,"n_cols":31,"rows_kept":11,"cut":false,"hidden":false,"merged":[]}
["Код проекта","Контрагент (юр лицо)","Доходы Расходы","Документ","Номер документа","Дата документа","Статус документа","Дата отправки","Дата подписания","ЭДО\n Оригинал","Условие","Срок оплаты","ОКВЭД","РИД","Сумма РИД","NDA","Рекламные условия","План дата оплаты","Факт дата оплаты","План оплата руб.","Акт без НДС","Комментарии","№ ПП","Сумма ПП","Дата ПП","Факт Месяц документа","Факт отгрузка руб.","Сумма с учетом НДС","Сумма задолженности просроченной","Дней просрочено"]
[2324244,"Яндекс ООО","доходы","Соглашение",33333,"2023-02-03","подписан","2023-02-03",null,"Оригинал",null,null,"IT","С письменного согласия"," ","С письменного согласия",null,null,null,5000000,null,null,null,null,null,{"$f":"IF(R2<>0, MONTH(R2),0)","v":0},{"$f":"IF(D2=\"Акт/УПД\",T2*IF(C2=\"доходы\",1,-1)/IF(U2=1,1,1.2),0)","v":0},{"$f":"IF(D2=\"Акт/УПД\",T2*IF(C2=\"доходы\",1,-1),0)","v":0},{"$f":"IF(D2=\"Акт/УПД\",IF(AA2>0,AB2,0),0)","v":0},{"$f":"DelayPeriod(H2,I2,K2,L2,R2)","v":0},""]
[2324244,"Яндекс ООО","доходы","Счет-оферта",44444,"2023-10-31","оплачен","2023-11-02",null,"ЭДО",null,null,"IT","С письменного согласия"," ","С письменного согласия",null,null,null,1000000,null,null,null,null,null,0,0,0,0,0,""]
[2324244,"Яндекс ООО","доходы","Акт/УПД",2,"2024-01-31","подписан",null,"2024-02-07","ЭДО","С даты подписания УПД","45 р.д.","IT","С письменного согласия"," ","С письменного согласия",null,"2024-04-12",null,1000000,null,null,null,null,null,4,833333.33333333337,1000000,1000000,0]
[2324244,"Яндекс ООО","доходы","Акт/УПД",1,"2024-02-29","отправлен","2024-03-21",null,"ЭДО","С даты направления УПД","30 к.д.","IT","С письменного согласия"," ","С письменного согласия",null,"2024-05-24",null,1000000,null,null,null,null,null,5,833333.33333333337,1000000,1000000,0]
[2324244,"Яндекс ООО","доходы","Акт/УПД",null,"2024-03-31","не создан",null,"2024-03-05",null,"С даты подписания УПД","90 к.д.","IT","С письменного согласия"," ","С письменного согласия",null,"2024-05-17",null,1000000,null,null,null,null,null,5,833333.33333333337,1000000,1000000,0]
[2324244,"Яндекс ООО","доходы","Акт/УПД",null,"2024-04-30","не создан","2024-03-05",null,null,"С даты направления УПД","5 р.д.","IT","С письменного согласия"," ","С письменного согласия",null,"2024-06-07",null,1000000,null,null,null,null,null,6,833333.33333333337,1000000,1000000,{"$f":"DelayPeriod(H7,I7,K7,L7,R7)","v":-16}]
[null,null,null,null,null,null,"не создан",null,null,null,null,null,null,null,null,null,null,null,null,null,null,null,null,null,null,{"$f":"MONTH(R8)","v":1},0,0,0,null,""]
[null,null,null,null,null,null,"не создан",null,null,null,null,null,null,null,null,null,null,null,null,null,null,null,null,null,null,1,0,0,0,null,""]
[null,null,null,null,null,null,"не создан",null,null,null,null,null,null,null,null,null,null,null,null,null,null,null,null,null,null,1,0,0,0,null,""]
[null,null,null,null,null,null,"не создан",null,null,null,null,null,null,null,null,null,null,null,null,null,null,null,null,null,null,1,0,0,0,null,""]